bitfinex/quotes_ETHUSD_20250215
["timestamp","ask_amount","ask_price","bid_price","bid_amount"]
[1739626189674,0.7698,2710.2,2710.1,1.69908135]
[1739626190079,0.7698,2710.2,2710.1,5.38898135]
[1739626199520,0.7869,2710.6,2710.1,5.38898135]
[1739626199721,0.447608,2710.5,2710.1,5.38898135]
[1739626199910,0.447608,2710.5,2710.3,1.69908135]
[1739626200282,0.7869,2710.6,2710.3,1.69908135]
[1739626200618,0.7869,2710.6,2710.5,1.69908135]
[1739626200983,0.7869,2710.6,2710.3,1.69908135]
[1739626202222,0.7869,2710.6,2710.3,5.38865135]
[1739626202471,0.7869,2710.6,2710.5,5.38843135]
[1739626202671,0.7869,2710.6,2710.5,1.69908135]
[1739626203573,0.7869,2710.6,2710.3,1.69908135]
[1739626203779,0.7869,2710.4,2710.0,5.38]
[1739626203947,0.7869,2710.3,2710.0,5.38]
[1739626205042,4.47654,2710.3,2709.9,1.69908135]
[1739626205267,0.7869,2710.2,2709.9,1.69908135]
[1739626205454,5.29329,2710.2,2709.9,1.69908135]
[1739626205782,1.60351,2710.2,2709.9,1.69908135]
[1739626206079,0.7869,2710.2,2709.9,1.69908135]
[1739626207457,0.7869,2710.2,2710.1,1.69908135]
[1739626208859,0.7869,2710.2,2709.9,1.69908135]
[1739626209274,4.47666,2710.2,2709.9,1.69908135]
[1739626209474,3.68984,2710.2,2709.9,1.69908135]
[1739626209702,1.160184,2710.1,2709.9,1.69908135]
[1739626211309,0.7912,2710.1,2709.9,1.69908135]
[1739626215606,0.7912,2710.1,2709.8,10.88538835]
[1739626215761,0.7912,2710.1,2709.8,10.88537835]
[1739626215963,0.7912,2710.1,2709.8,7.19513835]
[1739626217105,0.7912,2710.1,2709.8,10.88536835]
[1739626217270,0.7912,2710.1,2709.8,7.19513835]
[1739626217668,0.7912,2710.1,2709.9,3.69014]
[1739626218467,0.7912,2710.1,2709.8,7.19513835]
[1739626218694,0.7912,2710.1,2709.9,3.6901]
[1739626220269,0.7583,2710.4,2710.0,0.03689989]
[1739626220494,0.7583,2710.4,2710.1,3.68982]
[1739626220898,0.7583,2710.6,2710.1,4.26950835]
[1739626221070,0.7583,2710.6,2710.3,3.68955]
[1739626221795,0.7583,2710.6,2710.2,3.72654428]
[1739626222015,4.44719,2710.9,2710.4,3.68948]
[1739626223933,0.7583,2710.9,2710.4,3.50490835]
[1739626224229,1.51449738,2711.1,2710.7,3.68904]
[1739626224586,1.51449738,2711.1,2710.6,5.38]
[1739626224844,0.7583,2710.9,2710.6,5.38]
[1739626225339,3.68898,2710.8,2710.6,5.38]
[1739626225501,4.44738,2710.7,2710.6,5.38]
[1739626226103,0.7583,2710.1,2709.6,12.76098]
[1739626226307,0.7583,2710.1,2709.6,12.76097]
[1739626226922,0.7583,2710.1,2709.7,3.69044]
[1739626227491,0.7583,2710.1,2709.8,3.69029]
[1739626228632,0.7583,2710.1,2709.9,3.69015]
[1739626230145,0.7583,2710.1,2709.8,10.88542835]
[1739626230952,0.7511,2710.7,2709.8,4.25906567]
[1739626231251,4.44028,2710.7,2710.2,3.68976]
[1739626231606,0.7511,2710.7,2710.3,3.68962]
[1739626231813,0.7511,2710.7,2710.4,3.68947]
[1739626232213,0.7511,2710.7,2710.5,3.68927]
[1739626232853,0.7511,2710.7,2710.4,7.19437835]
[1739626233007,0.7511,2711.0,2710.6,3.6891]
[1739626233805,0.7511,2711.0,2710.7,3.68908]
[1739626234067,0.7511,2711.0,2710.8,3.68885]
[1739626234355,2.9661,2711.2,2710.8,3.68885]
[1739626234516,3.657739,2711.2,2710.8,3.68885]
[1739626234910,3.657739,2711.2,2710.7,3.50490835]
[1739626235116,3.657739,2711.2,2710.7,7.19394835]
[1739626235317,2.9661,2711.2,2710.7,7.19394835]
[1739626236544,0.7511,2711.2,2710.7,7.19394835]
[1739626236739,0.7511,2711.2,2710.7,3.50490835]
[1739626236924,4.43951,2711.2,2710.7,3.50490835]
[1739626237628,0.7511,2711.2,2710.7,7.19391835]
[1739626238250,4.4395,2711.2,2710.7,7.19391835]
[1739626239244,0.7511,2711.2,2710.8,3.68892]
[1739626242465,0.7511,2711.2,2710.7,3.50490835]
[1739626242661,4.4395,2711.2,2710.7,3.50490835]
[1739626242955,0.7511,2711.2,2710.7,7.19387835]
[1739626244271,0.7511,2711.2,2710.8,3.68886]
[1739626244770,0.7511,2711.2,2710.9,3.68871]
[1739626245144,0.7511,2711.2,2710.8,3.68886]
[1739626246070,0.7511,2711.2,2710.9,3.68878]
[1739626248272,0.7511,2711.2,2710.8,3.68886]
[1739626248480,0.7511,2711.2,2710.8,7.3777]
[1739626248662,0.7511,2711.2,2710.9,3.6888]
[1739626249773,0.7511,2711.2,2710.8,3.68884]
[1739626250078,0.7511,2711.2,2710.8,7.37772]
[1739626250285,0.7511,2711.2,2710.8,3.68884]
[1739626250575,0.7511,2711.2,2710.9,3.68877]
[1739626250774,0.7511,2711.2,2710.9,3.68881]
[1739626250970,0.7511,2711.2,2711.0,3.68861]
[1739626251299,0.7511,2711.2,2710.7,7.99959835]
[1739626251581,0.7511,2711.2,2710.9,3.68874]
[1739626252172,0.7511,2711.2,2711.1,3.68853]
[1739626253372,0.7684,2711.4,2711.1,3.68853]
[1739626254082,0.7684,2711.4,2711.0,3.50490835]
[1739626254264,4.45655,2711.4,2710.9,3.68868]
[1739626255382,0.7684,2711.4,2711.0,3.68863]
[1739626256876,3.68833,2711.3,2710.9,5.38]
[1739626257079,0.7684,2711.2,2710.9,5.38]
[1739626258586,0.7684,2711.2,2710.9,9.06879]
[1739626258788,0.7684,2711.2,2711.0,4.595549]
[1739626260279,0.7684,2711.2,2711.0,0.906879]
[1739626260486,0.7684,2711.2,2710.9,9.06879]
[1739626262404,4.45688,2711.2,2710.7,7.19387835]
[1739626262961,0.7619,2711.0,2710.6,5.38]
[1739626263200,0.7619,2710.8,2710.6,5.38]
[1739626263381,4.45088,2710.8,2710.6,5.38]
[1739626263587,5.26484,2710.8,2710.6,5.38]
[1739626263910,0.7619,2710.8,2710.6,5.38]
[1739626264409,0.7619,2710.8,2710.6,9.0692]
[1739626264613,0.7619,2711.1,2710.7,7.19389835]
[1739626264897,0.7619,2711.1,2710.6,9.06912]
[1739626265262,0.7619,2711.1,2710.6,12.75826]
[1739626265573,0.7619,2711.1,2710.6,9.06912]
[1739626265976,0.7619,2711.1,2710.8,3.68892]
[1739626266794,0.262,2711.2,2710.8,3.68892]
[1739626267003,0.262,2711.2,2710.9,3.68878]
[1739626267303,0.262,2711.2,2711.0,7.19347835]
[1739626269102,1.50632766,2711.5,2711.0,7.19347835]
[1739626269297,1.50632766,2711.5,2711.0,11.67755619]
[1739626269507,1.50632766,2711.5,2711.0,7.98895619]
[1739626269805,1.50632766,2711.5,2711.0,11.67754619]
[1739626269993,1.50632766,2711.5,2711.0,7.98895619]
[1739626270163,1.50632766,2711.5,2711.0,4.30038619]
[1739626270390,5.19434766,2711.5,2711.0,4.30038619]
[1739626270710,0.74442766,2711.5,2711.3,3.50490835]
[1739626271992,0.7619,2711.4,2711.3,3.50490835]
[1739626274209,0.74442766,2711.5,2711.3,3.50490835]
[1739626275614,4.43242766,2711.5,2711.0,13.36898619]
[1739626275807,4.43242766,2711.5,2711.0,9.68038619]
[1739626276107,4.43242766,2711.5,2711.0,13.36901619]
[1739626276314,4.43242766,2711.5,2711.0,17.05764619]
[1739626276501,4.43242766,2711.5,2711.1,0.74868214]
[1739626276808,0.74442766,2711.5,2711.1,4.43721214]
[1739626277215,0.74442766,2711.5,2711.1,4.47409426]
[1739626278019,0.74442766,2711.5,2711.1,4.43721214]
[1739626280013,4.43254766,2711.5,2711.1,0.74868214]
[1739626280914,0.74442766,2711.5,2711.1,0.74868214]
[1739626281890,0.74442766,2711.5,2711.1,4.43720214]
[1739626282103,0.74442766,2711.5,2711.3,3.50490835]
[1739626282432,0.74442766,2711.5,2711.3,4.32760835]
[1739626284429,0.74442766,2711.5,2711.3,3.50490835]
[1739626286327,0.74442766,2711.5,2711.3,8.88490835]
[1739626287701,5.26398766,2711.5,2711.3,5.38]
[1739626289627,1.57592766,2711.5,2711.3,5.38]
[1739626289793,3.68813,2711.4,2711.3,5.38]
[1739626290393,5.26392766,2711.5,2711.3,5.38]
[1739626290829,3.68813,2711.4,2711.3,5.38]
[1739626291003,5.26392766,2711.5,2711.3,5.38]
[1739626291004,1.57592766,2711.5,2711.3,5.38]
[1739626291210,5.26392766,2711.5,2711.3,5.38]
[1739626291708,3.68813,2711.4,2711.3,5.38]
[1739626291897,1.57592766,2711.5,2711.3,5.38]
[1739626292098,5.26392766,2711.5,2711.0,12.57356835]
[1739626292298,5.26392766,2711.5,2711.0,14.28206819]
[1739626294099,3.68848,2711.2,2711.0,5.38]
[1739626296029,0.7528,2711.1,2711.0,5.38]
[1739626296831,4.44133,2711.1,2711.0,5.38]
[1739626297940,4.44133,2711.1,2710.7,5.38]
[1739626298121,0.7528,2711.1,2710.7,5.38]
[1739626299046,3.68869,2711.0,2710.6,0.8306]
[1739626299559,3.68869,2711.0,2710.5,5.38]
[1739626300511,3.68869,2711.0,2710.5,9.06934]
[1739626301860,2.215,2710.9,2710.5,9.06934]
[1739626302044,3.68869,2711.0,2710.5,9.06934]
[1739626303544,0.7528,2711.1,2710.6,3.68918]
[1739626303846,3.6887,2711.0,2710.5,9.06934]
[1739626304049,0.8115,2711.0,2710.5,5.38]
[1739626304212,4.50072,2710.6,2710.5,5.38]
[1739626304546,4.50072,2710.6,2710.2,5.38]
[1739626304857,4.50076,2710.6,2710.2,5.38]
[1739626305019,3.68958,2710.4,2710.2,5.38]
[1739626305215,3.68958,2710.4,2710.0,8.277]
[1739626305616,4.50134,2710.2,2710.0,8.277]
[1739626305934,3.6899,2710.1,2710.0,8.277]
[1739626306642,4.50134,2710.2,2710.0,8.277]
[1739626306955,5.56813,2710.2,2710.0,8.277]
[1739626308617,6.3102976,2710.2,2710.0,8.277]
[1739626309356,1.87829,2710.2,2710.0,8.277]
[1739626309658,0.8115,2710.2,2710.0,8.277]
[1739626310930,4.5013,2710.2,2710.0,8.277]
[1739626314065,3.6899,2710.1,2710.0,8.277]
[1739626314450,4.5013,2710.2,2710.0,8.277]
[1739626314658,8.19116,2710.2,2710.0,8.277]
[1739626314866,9.33153591,2710.2,2710.0,8.277]
[1739626315367,3.6899,2710.1,2710.0,8.277]
[1739626315657,5.64167591,2710.2,2710.0,8.277]
[1739626315962,9.33155591,2710.2,2710.0,8.277]
[1739626316332,9.33151591,2710.2,2710.0,8.277]
[1739626316534,1.0067115,2710.1,2710.0,8.277]
[1739626316748,0.8115,2710.2,2710.0,8.277]
[1739626317159,4.50127,2710.2,2710.0,8.277]
[1739626317346,4.50127,2710.2,2709.7,7.19530835]
[1739626317762,4.50127,2710.2,2709.7,3.50490835]
[1739626319791,0.8115,2710.2,2709.7,3.50490835]
[1739626320075,3.68992,2710.1,2709.5,9.88173]
[1739626320281,3.6899,2710.1,2709.5,13.57237]
[1739626320688,3.6899,2710.1,2709.6,3.69055]
[1739626320846,7.37989,2710.1,2709.5,9.88173]
[1739626321289,3.6899,2710.1,2709.5,9.88173]
[1739626321500,7.37988,2710.1,2709.5,9.88173]
[1739626321710,3.69043,2709.8,2709.5,0.8111]
[1739626321995,4.50622,2709.8,2709.0,4.48801]
[1739626322193,3.69061,2709.6,2709.0,4.48801]
[1739626322486,3.69061,2709.6,2709.1,3.69122]
[1739626322862,3.69061,2709.6,2709.0,4.48801]
[1739626322863,7.38127,2709.6,2709.0,4.48801]
[1739626323055,4.50652,2709.5,2709.0,4.48801]
[1739626323373,4.50652,2709.5,2708.9,3.50490835]
[1739626323374,3.69087,2709.4,2708.9,7.19637835]
[1739626323687,3.69106,2709.3,2708.8,9.0777]
[1739626325107,3.69113,2709.2,2708.8,9.0777]
[1739626325959,0.8158,2709.1,2708.8,8.281]
[1739626328670,0.819814,2709.0,2708.8,8.281]
[1739626328869,3.69153,2708.9,2708.8,8.281]
[1739626330407,3.69153,2708.9,2708.4,3.69219]
[1739626330909,4.50713,2709.1,2708.5,3.692]
[1739626331267,3.69143,2709.0,2708.5,3.692]
[1739626331467,0.8158,2709.1,2708.6,3.69193]
[1739626331668,0.8158,2709.1,2708.7,0.7967]
[1739626331967,0.8158,2709.1,2708.8,3.69167]
[1739626332194,0.262,2709.3,2708.9,3.50490835]
[1739626332514,0.81414043,2709.3,2708.9,3.50490835]
[1739626332715,0.81414043,2709.3,2708.7,0.7967]
[1739626333008,0.8158,2709.0,2708.6,3.50490835]
[1739626333160,3.69155,2708.9,2708.6,3.50490835]
[1739626339125,0.8158,2709.0,2708.6,3.50490835]
[1739626339428,4.50722,2709.0,2708.6,3.50490835]
[1739626340328,4.47241,2709.2,2708.7,3.69173]
[1739626340904,0.7812,2709.2,2708.7,3.69173]
[1739626341117,3.69104,2709.3,2708.8,4.47606]
[1739626341447,4.73401,2709.5,2708.9,3.50490835]
[1739626341819,3.69095,2709.4,2708.9,7.19634835]
[1739626342126,5.47974516,2709.5,2708.9,7.19634835]
[1739626342330,3.69099,2709.3,2708.8,0.7844]
[1739626342528,4.47247,2709.1,2708.6,3.50490835]
[1739626342697,3.69147,2709.0,2708.6,3.50490835]
[1739626343316,4.47247,2709.1,2708.6,3.50490835]
[1739626343515,4.47247,2709.1,2708.6,7.19683835]
[1739626344217,4.47247,2709.1,2708.6,3.50490835]
[1739626344744,4.47247,2709.1,2708.6,7.19683835]
[1739626345238,4.47247,2709.1,2708.6,3.50490835]
[1739626345441,4.47226,2709.3,2708.7,3.69173]
[1739626345955,3.69115,2709.2,2708.7,3.69173]
[1739626346122,0.7812,2709.3,2708.8,3.6916]
[1739626346324,4.47221,2709.3,2708.7,3.69173]
[1739626346640,4.47221,2709.3,2708.7,7.38344]
[1739626346856,4.47221,2709.3,2708.8,3.69163]
[1739626347152,1.78893516,2709.5,2709.0,0.7844]
[1739626347360,3.69086,2709.4,2709.0,4.47579]
[1739626348069,3.69086,2709.4,2709.0,0.7844]
[1739626348366,7.38182,2709.4,2709.0,0.7844]
[1739626348859,3.69109,2709.3,2708.9,3.50490835]
[1739626349065,4.60817852,2709.3,2708.8,0.8293]
[1739626349448,4.60817852,2709.3,2708.8,4.52094]
[1739626350248,0.91708852,2709.3,2708.8,4.52094]
[1739626350471,3.69086,2709.4,2708.9,3.69144]
[1739626351569,3.69086,2709.4,2708.9,3.69152]
[1739626354309,7.38181,2709.4,2708.9,3.69152]
[1739626354504,3.69099,2709.3,2708.8,0.8293]
[1739626355163,3.69086,2709.4,2708.9,3.69153]
[1739626355374,4.82940652,2709.4,2708.9,3.69153]
[1739626355795,3.691,2709.3,2708.8,4.52097]
[1739626356525,4.82940652,2709.4,2708.8,0.8293]
[1739626356728,0.7812,2709.5,2709.2,7.19601835]
[1739626357008,2.477,2709.6,2709.2,4.33420835]
[1739626357313,6.16765,2709.6,2709.2,4.33420835]
[1739626357726,6.16765,2709.6,2709.2,3.50490835]
[1739626358022,2.477,2709.6,2709.2,3.50490835]
[1739626358405,6.16769,2709.6,2709.2,3.50490835]
[1739626358891,6.16769,2709.6,2709.0,4.52057]
[1739626359098,6.16769,2709.6,2709.0,5.69228084]
[1739626360700,6.16769,2709.6,2709.1,3.69125]
[1739626361531,0.7762,2709.4,2709.0,0.8293]
[1739626362237,0.7762,2709.4,2709.0,4.52068]
[1739626363233,0.7762,2709.4,2708.9,7.19631835]
[1739626363414,0.7762,2709.4,2708.9,3.50490835]
[1739626363614,4.46706,2709.4,2708.9,8.53695618]
[1739626363824,3.69101,2709.3,2708.9,3.50490835]
[1739626364912,3.69101,2709.3,2708.7,5.38]
[1739626365112,4.46705,2709.4,2708.8,3.69157]
[1739626365547,4.46705,2709.4,2708.8,7.38317]
[1739626365704,4.46705,2709.4,2708.8,8.98606832]
[1739626366120,4.46705,2709.4,2708.9,3.6915]
[1739626366323,3.69076,2709.5,2709.0,4.47318]
[1739626366635,3.69076,2709.5,2708.9,3.50490835]
[1739626366636,2.215,2709.3,2708.9,3.50490835]
[1739626366807,0.7756,2709.2,2708.9,3.50490835]
[1739626367865,0.7756,2709.2,2708.8,0.7818]
[1739626368067,3.69099,2709.3,2708.8,4.47345]
[1739626369280,3.69099,2709.3,2708.8,9.87006083]
[1739626369462,3.69078,2709.5,2709.0,3.69138]
[1739626369659,3.69087,2709.4,2708.9,3.50490835]
[1739626370189,3.69113,2709.2,2708.7,5.38]
[1739626370484,7.38233,2709.2,2708.7,5.38]
[1739626370681,3.69113,2709.2,2708.7,5.38]
[1739626370854,3.69113,2709.2,2708.7,9.0717]
[1739626371191,3.69093,2709.4,2708.9,7.19632835]
[1739626371787,7.38188,2709.4,2708.9,7.19632835]
[1739626372285,3.69093,2709.4,2708.9,7.19632835]
[1739626372593,3.69099,2709.3,2708.9,7.19632835]
[1739626372774,3.69093,2709.4,2708.9,3.50490835]
[1739626372973,3.69101,2709.3,2708.9,3.50490835]
[1739626373180,0.7756,2709.1,2708.7,5.38]
[1739626373362,4.46695,2709.1,2708.7,5.38]
[1739626373798,0.7756,2709.1,2708.7,5.38]
[1739626373999,3.69146,2709.0,2708.7,5.38]
[1739626375201,3.69146,2709.0,2708.5,3.69198]
[1739626376204,1.5248625,2709.1,2708.6,3.50490835]
[1739626376368,0.7756,2709.1,2708.7,0.7818]
[1739626377277,0.7756,2709.1,2708.7,4.47359]
[1739626378967,0.7756,2709.1,2708.7,4.47353]
[1739626379171,4.46644,2709.4,2708.7,5.89858532]
[1739626379371,4.46644,2709.4,2708.9,7.19630835]
[1739626380598,4.43263323,2709.6,2709.0,4.45312]
[1739626380765,4.69463323,2709.6,2709.0,4.45312]
[1739626380965,3.69074,2709.5,2709.0,4.45312]
[1739626381190,4.46637,2709.4,2708.9,3.50490835]
[1739626381391,3.691,2709.3,2708.9,3.50490835]
[1739626382298,0.7755,2709.4,2708.9,7.19635835]
[1739626383263,0.262,2709.5,2709.0,3.69127]
[1739626383994,0.262,2709.5,2708.9,7.19635835]
[1739626383995,3.95273,2709.5,2708.9,7.19635835]
[1739626384194,3.95273,2709.5,2708.9,10.88780835]
[1739626384386,3.95273,2709.5,2708.9,7.19634835]
[1739626384597,7.64352,2709.5,2708.9,7.19634835]
[1739626385103,3.95273,2709.5,2708.9,10.88779835]
[1739626385406,3.95273,2709.5,2709.1,0.7618]
[1739626385765,0.262,2709.5,2709.1,4.45299]
[1739626386007,3.95245,2709.7,2709.1,4.45296]
[1739626386677,3.6906,2709.6,2709.1,4.45296]
[1739626387120,0.262,2709.7,2709.1,4.45296]
[1739626387307,3.95253,2709.7,2709.2,3.6911]
[1739626387468,1.40026974,2709.7,2709.1,0.7618]
[1739626387671,5.09072974,2709.7,2709.2,3.69111]
[1739626388315,5.09072974,2709.7,2709.1,4.45297]
[1739626388486,3.69058,2709.6,2709.1,8.14415]
[1739626389213,0.262,2709.7,2709.1,4.45297]
[1739626389378,0.7755,2709.8,2709.4,3.69079]
[1739626390201,0.262,2709.9,2709.6,3.69055]
[1739626390371,0.7755,2710.0,2709.6,3.69055]
[1739626390704,4.72729,2710.2,2709.7,3.69042]
[1739626390924,1.0375,2710.2,2709.7,3.69042]
[1739626391279,5.31,2710.6,2710.0,0.7618]
[1739626391280,0.7755,2710.5,2710.0,0.7618]
[1739626391475,4.46486,2710.5,2710.0,4.45176]
[1739626391678,4.72686,2710.5,2710.0,4.45176]
[1739626391883,3.68964,2710.3,2710.0,0.7618]
[1739626392110,3.68964,2710.3,2709.8,7.19507835]
[1739626392309,0.368964,2710.2,2709.8,3.50490835]
[1739626393014,0.368964,2710.2,2709.8,7.19518835]
[1739626396483,3.68957,2710.4,2709.8,7.19518835]
[1739626396816,3.68968,2710.3,2709.8,7.19518835]
[1739626397517,3.68957,2710.4,2709.8,7.19511835]
[1739626398551,7.37917,2710.4,2709.8,7.19511835]
[1739626398856,3.68957,2710.4,2709.8,7.19511835]
[1739626399039,4.23765717,2710.4,2709.8,7.19511835]
[1739626399853,3.68962,2710.3,2709.8,7.19511835]
[1739626400252,7.92722717,2710.4,2709.8,7.19511835]
[1739626400936,3.6897,2710.3,2709.8,7.19511835]
[1739626401443,0.7613,2710.0,2709.5,7.19560835]
[1739626401656,4.45146,2710.0,2709.5,3.50490835]
[1739626401854,3.69055,2709.7,2709.4,5.38]
[1739626402034,4.45188,2709.6,2709.2,3.50490835]
[1739626402556,3.6908,2709.5,2709.1,0.8185]
[1739626402731,3.6908,2709.5,2709.0,3.6913]
[1739626403729,0.7613,2709.6,2708.9,4.32340835]
[1739626403936,0.7613,2709.6,2709.2,3.50490835]
[1739626404139,0.7613,2709.6,2709.2,7.19597835]
[1739626405237,2.477,2709.7,2709.2,10.88701835]
[1739626405489,0.44513,2710.0,2709.7,3.69042]
[1739626405490,0.262,2710.0,2709.7,3.69042]
[1739626405695,0.262,2710.0,2709.7,4.50892]
[1739626406543,0.262,2710.0,2709.7,0.8185]
[1739626407087,0.262,2710.0,2709.7,4.50886]
[1739626407293,0.262,2710.0,2709.7,5.67929484]
[1739626407792,0.262,2710.0,2709.9,3.69017]
[1739626408005,2.215,2710.4,2709.9,3.69017]
[1739626408210,5.90452,2710.4,2709.9,3.69017]
[1739626409089,2.215,2710.4,2709.9,3.69017]
[1739626410259,5.90452,2710.4,2709.9,3.69017]
[1739626410460,2.215,2710.4,2709.9,3.69017]
[1739626410774,2.215,2710.5,2710.0,0.8239]
[1739626411173,2.215,2710.5,2710.1,3.68986]
[1739626411470,5.90442,2710.5,2710.0,0.8239]
[1739626415475,2.215,2710.5,2710.0,0.8239]
[1739626415592,3.68971,2710.3,2709.8,8.01903835]
[1739626415937,0.8046,2710.2,2709.8,8.82094219]
[1739626416837,3.0196,2710.5,2709.8,8.82094219]
[1739626416989,3.0196,2710.5,2710.0,3.69002]
[1739626416990,6.70903,2710.5,2710.0,3.69002]
[1739626418137,3.6895,2710.4,2709.9,3.69014]
[1739626418507,6.70903,2710.5,2709.9,3.69009]
[1739626418708,6.70903,2710.5,2709.9,4.94119322]
[1739626419336,6.70903,2710.5,2709.9,1.25110322]
[1739626419541,6.70903,2710.5,2710.0,3.68999]
[1739626420315,3.0196,2710.5,2709.9,1.25110322]
[1739626420554,3.68951,2710.4,2709.9,4.94124322]
[1739626421454,2.215,2710.3,2709.9,4.94124322]
[1739626421653,5.90463,2710.3,2709.8,8.01904835]
[1739626422457,2.215,2710.4,2709.9,3.69008]
[1739626422952,2.215,2710.4,2710.0,3.68997]
[1739626423157,5.90449,2710.4,2709.9,3.69008]
[1739626423308,3.6897,2710.3,2709.8,3.50490835]
[1739626423498,0.8196,2710.2,2709.8,3.50490835]
[1739626423898,0.8196,2710.2,2709.8,7.19511835]
[1739626426306,3.0346,2710.4,2709.9,3.69013]
[1739626426507,6.7241,2710.4,2709.9,3.69013]
[1739626426753,3.68964,2710.3,2709.9,3.69013]
[1739626427753,0.8196,2710.1,2709.6,0.7999]
[1739626427953,0.8196,2710.1,2709.7,3.69044]
[1739626429262,0.8196,2710.1,2709.8,3.69028]
[1739626430005,5.90465,2710.3,2709.8,3.69028]
[1739626430210,3.042,2710.3,2709.8,3.50490835]
[1739626430411,3.042,2710.3,2710.0,3.69003]
[1739626430613,2.215,2710.3,2710.0,7.37989]
[1739626430913,0.827,2710.5,2710.2,3.68971]
[1739626431321,2.215,2710.7,2710.2,4.427651]
[1739626431513,2.215,2710.7,2710.3,0.8175]
[1739626431855,2.215,2710.7,2710.4,3.68941]
[1739626433349,2.215,2710.7,2710.3,0.8175]
[1739626434143,5.9041,2710.7,2710.3,0.8175]
[1739626434441,5.90388,2710.9,2710.4,7.19438835]
[1739626434642,2.215,2710.9,2710.5,3.68934]
[1739626435444,2.215,2710.9,2710.4,7.19438835]
[1739626435663,3.68896,2710.8,2710.4,3.50490835]
[1739626436141,5.90392,2710.9,2710.4,3.50490835]
[1739626436342,5.90392,2710.9,2710.4,7.19436835]
[1739626436541,3.68892,2710.9,2710.4,11.84626138]
[1739626436754,0.827,2711.0,2710.5,3.68927]
[1739626437554,4.51569,2711.0,2710.5,3.68927]
[1739626437754,0.827,2711.0,2710.6,3.68918]
[1739626437960,0.827,2711.0,2710.6,4.50668]
[1739626438169,3.68862,2711.1,2710.6,4.50668]
[1739626438330,0.8226,2711.2,2710.7,3.50490835]
[1739626438538,3.68827,2711.3,2710.8,3.68883]
[1739626439067,3.68827,2711.3,2710.7,10.88299835]
[1739626439377,3.68827,2711.3,2710.8,3.68893]
[1739626439863,3.68827,2711.3,2710.7,3.50490835]
[1739626440045,3.68827,2711.3,2710.7,7.99512519]
[1739626440862,7.37661,2711.3,2710.7,7.99512519]
[1739626441263,3.68844,2711.2,2710.7,7.99512519]
[1739626441741,3.68827,2711.3,2710.7,7.99512519]
[1739626442250,3.68827,2711.3,2710.8,3.68887]
[1739626442445,3.68827,2711.3,2710.9,1.16839252]
[1739626442971,3.68843,2711.2,2710.9,1.16839252]
[1739626443202,3.68827,2711.3,2710.7,7.99512519]
[1739626443410,3.68827,2711.3,2710.8,3.6889]
[1739626445387,3.0376,2711.4,2710.8,3.68887]
[1739626445584,3.68836,2711.3,2710.7,7.99512519]
[1739626445886,3.68836,2711.3,2710.7,11.68412519]
[1739626446091,3.68846,2711.2,2710.8,1.78816252]
[1739626446397,3.68878,2711.0,2710.7,0.80116684]
[1739626446699,0.8226,2711.1,2710.7,0.80116684]
[1739626447201,4.51115,2711.1,2710.7,0.80116684]
[1739626449997,0.8226,2711.1,2710.7,0.80116684]
[1739626450296,0.8226,2711.3,2710.8,4.48667]
[1739626450502,0.8226,2711.3,2710.9,1.24817352]
[1739626450796,0.8226,2711.3,2710.9,4.93690352]
[1739626450995,0.72185222,2711.5,2711.0,3.50490835]
[1739626451198,0.72185222,2711.5,2711.0,7.19356835]
[1739626451377,0.72185222,2711.5,2711.0,3.50490835]
[1739626451567,4.40987222,2711.5,2711.1,0.84418119]
[1739626453103,0.72185222,2711.5,2711.1,0.84418119]
[1739626453318,0.72185222,2711.5,2711.2,0.7686]
[1739626455184,0.72185222,2711.5,2711.2,4.45693]
[1739626455907,0.72185222,2711.5,2711.2,0.7686]
[1739626456892,0.72185222,2711.5,2711.2,2.01807795]
[1739626457222,0.72185222,2711.5,2711.2,5.70645795]
[1739626458894,0.72185222,2711.5,2711.2,2.01807795]
[1739626459299,4.40988222,2711.5,2711.2,2.01807795]
[1739626459536,0.72185222,2711.5,2711.1,3.68852]
[1739626459734,4.40994222,2711.5,2711.0,7.96208835]
[1739626460033,0.7736,2711.4,2711.0,7.96208835]
[1739626460336,0.7736,2711.4,2711.1,3.68852]
[1739626460521,0.7736,2711.4,2711.0,7.96208835]
[1739626460834,0.7736,2711.4,2711.1,0.79620884]
[1739626460997,0.7736,2711.4,2711.1,4.48470884]
[1739626461431,0.7736,2711.4,2711.1,0.79620884]
[1739626461830,0.72185222,2711.5,2711.2,3.6884]
[1739626462133,0.72185222,2711.5,2711.3,0.7686]
[1739626462438,0.72185222,2711.5,2711.4,0.4457]
[1739626463137,0.72185222,2711.5,2711.4,4.13383]
[1739626464847,0.72185222,2711.5,2711.4,0.4457]
[1739626465413,0.72185222,2711.5,2711.4,4.13383]
[1739626465730,3.68745,2711.9,2711.4,4.13383]
[1739626465931,3.68745,2711.9,2711.5,0.50815505]
[1739626466936,3.68745,2711.9,2711.4,0.4457]
[1739626466937,3.68753,2711.9,2711.4,0.4457]
[1739626467234,1.0356,2712.1,2711.4,0.4457]
[1739626467734,3.68751,2711.9,2711.4,0.4457]
[1739626468140,3.68751,2711.9,2711.4,4.13381]
[1739626469547,3.68751,2711.9,2711.5,0.7888]
[1739626469842,3.68751,2711.9,2711.5,1.63155184]
[1739626473370,3.68731,2712.0,2711.5,1.63155184]
[1739626474139,3.68745,2711.9,2711.5,1.63155184]
[1739626474489,5.20383943,2712.1,2711.6,3.68781]
[1739626475575,0.74301943,2712.1,2711.6,10.88049835]
[1739626475738,0.74301943,2712.1,2711.7,5.64883502]
[1739626475936,0.74301943,2712.1,2711.7,1.96112502]
[1739626476133,4.43025943,2712.1,2711.7,1.96112502]
[1739626477271,0.74301943,2712.1,2711.7,5.64883502]
[1739626477481,3.68683,2712.4,2711.8,3.68751]